bitfinex/quotes_SOLUSD_20250724
["timestamp","ask_amount","ask_price","bid_price","bid_amount"]
[1753374031893,16.78468397,188.18,188.13,13.30366884]
[1753374032688,16.78468397,188.18,188.14,13.30366884]
[1753374032895,16.78468397,188.18,188.14,13.97366884]
[1753374033192,16.78468397,188.18,188.14,13.30366884]
[1753374033394,2.77133477,188.17,188.13,13.30366884]
[1753374033571,8.08585168,188.17,188.13,13.30366884]
[1753374033771,70.08835281,188.16,188.11,0.06]
[1753374034186,69.46835281,188.16,188.11,0.06]
[1753374034368,39.38,188.16,188.12,13.97366884]
[1753374034568,39.38,188.16,188.12,13.30366884]
[1753374034773,16.78468397,188.15,188.11,0.06]
[1753374035199,16.78468397,188.15,188.08,0.06]
[1753374035200,56.08835281,188.12,188.08,0.06]
[1753374035379,0.62,188.14,188.08,0.06]
[1753374035380,56.08835281,188.09,188.08,0.06]
[1753374035578,61.40495656,188.09,188.08,0.06]
[1753374035780,62.02495656,188.09,188.08,0.06]
[1753374036194,61.40495656,188.09,188.08,0.06]
[1753374036873,62.02495656,188.09,188.08,0.06]
[1753374037497,61.40495656,188.09,188.08,0.06]
[1753374037680,62.02495656,188.09,188.08,0.06]
[1753374038809,101.40495656,188.09,188.08,0.06]
[1753374041511,26.0,188.09,188.08,0.73]
[1753374041807,2.77133477,188.17,188.09,6.93130375]
[1753374041983,5.31377862,188.19,188.15,13.30366884]
[1753374042294,5.31377862,188.19,188.09,6.93130375]
[1753374042295,13.30366884,188.17,188.11,13.97366884]
[1753374042691,81.45531195,188.18,188.12,13.30366884]
[1753374042895,81.45531195,188.18,188.13,13.30366884]
[1753374043076,81.45531195,188.18,188.08,5.37682912]
[1753374043278,13.30366884,188.13,188.08,0.06]
[1753374043706,52.68366884,188.14,188.08,14.03366884]
[1753374043918,5.31547334,188.13,188.09,13.97366884]
[1753374044086,5.31547334,188.13,188.09,0.67]
[1753374044280,5.31547334,188.13,188.08,13.36366884]
[1753374044696,5.31547334,188.13,188.09,0.67]
[1753374044909,39.38,188.14,188.11,13.30366884]
[1753374045219,26.0,188.16,188.12,13.97366884]
[1753374045220,5.31490831,188.15,188.12,13.97366884]
[1753374045583,44.6946875,188.16,188.12,13.97366884]
[1753374046098,44.6946875,188.16,188.12,13.30366884]
[1753374046478,5.3146875,188.16,188.13,13.30366884]
[1753374047280,5.3146875,188.16,188.14,13.30366884]
[1753374047488,39.38,188.19,188.15,13.97366884]
[1753374047688,2.77123525,188.2,188.17,13.30366884]
[1753374047887,34.08491442,188.2,188.17,0.67]
[1753374048402,0.03,188.23,188.19,13.30366884]
[1753374048608,0.03,188.23,188.18,0.67]
[1753374048609,0.03,188.23,188.2,13.30366884]
[1753374048784,2.80053079,188.23,188.18,13.30366884]
[1753374049187,2.80053079,188.23,188.18,9.37016119]
[1753374049391,2.80053079,188.23,188.18,8.70016119]
[1753374049583,8.11321834,188.23,188.18,9.37016119]
[1753374049885,2.80053079,188.23,188.21,8.70016119]
[1753374050091,0.03,188.23,188.22,0.67]
[1753374050416,2.80038137,188.23,188.21,8.70016119]
[1753374050914,8.11304867,188.23,188.21,8.70016119]
[1753374051096,2.80038137,188.23,188.21,8.70016119]
[1753374051513,0.03,188.23,188.22,0.67]
[1753374051712,0.03,188.23,188.22,9.37016119]
[1753374053682,0.03,188.23,188.22,14.68309286]
[1753374054405,0.03,188.23,188.22,9.37016119]
[1753374054900,0.03,188.23,188.21,8.70016119]
[1753374055110,0.03,188.23,188.21,9.37016119]
[1753374055292,0.03,188.23,188.22,9.37016119]
[1753374056002,0.03,188.23,188.22,8.70016119]
[1753374056203,0.03,188.23,188.22,9.37016119]
[1753374056585,0.03,188.23,188.19,0.67]
[1753374056794,0.03,188.23,188.19,9.37016119]
[1753374057593,8.73016119,188.23,188.17,8.70016119]
[1753374057791,8.70016119,188.22,188.16,9.40016119]
[1753374058508,8.70016119,188.2,188.14,8.70016119]
[1753374058719,65.36,188.22,188.13,0.7]
[1753374058720,8.70016119,188.19,188.13,0.7]
[1753374059011,8.70016119,188.19,188.13,9.40016119]
[1753374059225,8.70016119,188.17,188.11,8.70016119]
[1753374059395,8.70016119,188.16,188.1,9.40016119]
[1753374059796,5.31490831,188.15,188.11,8.70016119]
[1753374060122,5.31490831,188.15,188.12,0.7]
[1753374060316,5.31490831,188.15,188.1,8.70016119]
[1753374060619,26.0,188.22,188.14,8.70016119]
[1753374060793,26.0,188.22,188.18,8.70016119]
[1753374060998,26.0,188.22,188.19,9.40016119]
[1753374061201,26.0,188.22,188.13,39.36]
[1753374061202,26.0,188.22,188.17,8.70016119]
[1753374061427,8.70016119,188.19,188.12,0.7]
[1753374061628,8.70016119,188.17,188.09,2.2516]
[1753374061917,0.62,188.19,188.13,8.70016119]
[1753374061918,31.31417904,188.18,188.13,8.70016119]
[1753374062298,31.31417904,188.18,188.14,0.7]
[1753374062700,26.0,188.18,188.15,0.7]
[1753374063320,0.03,188.23,188.17,8.70016119]
[1753374063598,0.03,188.23,188.21,8.70016119]
[1753374063995,0.03,188.23,188.2,8.70016119]
[1753374064199,0.03,188.23,188.21,0.7]
[1753374064408,0.03,188.23,188.21,9.40016119]
[1753374064608,0.03,188.23,188.22,0.7]
[1753374065811,0.03,188.23,188.22,9.40016119]
[1753374066321,0.03,188.23,188.2,8.70016119]
[1753374066828,0.03,188.23,188.2,9.40016119]
[1753374067005,0.03,188.23,188.19,8.70016119]
[1753374067320,0.03,188.23,188.2,8.70016119]
[1753374067715,0.03,188.23,188.22,8.70016119]
[1753374067919,0.03,188.23,188.22,9.40016119]
[1753374068220,0.03,188.23,188.22,14.71309286]
[1753374068420,0.03,188.23,188.22,9.40016119]
[1753374069503,0.03,188.23,188.22,14.71309286]
[1753374069905,0.03,188.24,188.22,31.49777683]
[1753374070110,0.03,188.26,188.25,43.06900711]
[1753374070316,0.03,188.27,188.26,8.70016119]
[1753374070624,0.01,188.28,188.26,9.40016119]
[1753374070798,0.01,188.28,188.27,0.7]
[1753374071423,0.01,188.28,188.27,40.04]
[1753374072149,0.01,188.28,188.27,71.12068898]
[1753374072630,0.01,188.28,188.27,2.2379]
[1753374072808,0.01,188.28,188.27,9.40016119]
[1753374073941,0.01,188.28,188.27,8.70016119]
[1753374074137,0.01,188.28,188.18,1.5876]
[1753374074441,0.01,188.28,188.23,8.70016119]
[1753374074826,0.01,188.28,188.19,39.32]
[1753374074827,0.01,188.28,188.24,9.40016119]
[1753374075023,0.01,188.28,188.25,8.70016119]
[1753374075428,0.01,188.28,188.26,9.40016119]
[1753374075630,0.01,188.28,188.26,8.70016119]
[1753374076220,0.01,188.28,188.25,8.70016119]
[1753374076416,0.01,188.28,188.23,6.01257119]
[1753374076417,0.01,188.28,188.24,8.70016119]
[1753374076615,0.01,188.28,188.23,8.70016119]
[1753374077048,0.01,188.28,188.17,6.80602314]
[1753374077049,8.70016119,188.24,188.13,1.5875]
[1753374077223,8.70016119,188.22,188.16,9.40016119]
[1753374077427,26.01,188.28,188.21,8.70016119]
[1753374077746,0.01,188.28,188.25,8.70016119]
[1753374077919,0.01,188.28,188.27,8.70016119]
[1753374078648,0.01,188.28,188.27,9.40016119]
[1753374079421,0.01,188.28,188.27,14.71168187]
[1753374080031,0.01,188.28,188.27,0.7]
[1753374080237,0.01,188.28,188.27,9.40016119]
[1753374081459,0.01,188.28,188.27,26.4691683]
[1753374081629,0.03,188.31,188.3,26.0]
[1753374081829,0.03,188.31,188.3,74.02016119]
[1753374082030,0.03,188.31,188.3,74.72016119]
[1753374082225,0.03,188.31,188.3,40.71083564]
[1753374082433,0.03,188.31,188.3,35.40016119]
[1753374082630,0.03,188.31,188.25,13.28021248]
[1753374082631,0.03,188.31,188.22,13.2820261]
[1753374082951,0.03,188.31,188.3,8.70016119]
[1753374083333,0.03,188.31,188.3,9.40016119]
[1753374084941,0.03,188.31,188.3,14.71083564]
[1753374085162,0.03,188.31,188.3,6.01067445]
[1753374085336,0.03,188.31,188.3,14.71083564]
[1753374085835,0.03,188.31,188.26,39.27908299]
[1753374085836,0.03,188.31,188.26,8.70016119]
[1753374086048,8.70016119,188.29,188.18,8.2905]
[1753374086248,5.31152068,188.27,188.22,8.70016119]
[1753374086556,9.40016119,188.28,188.22,0.7]
[1753374086557,5.31129261,188.28,188.22,0.7]
[1753374086765,5.31129261,188.28,188.23,8.70016119]
[1753374086934,5.31129261,188.28,188.24,8.70016119]
[1753374087133,5.31129261,188.28,188.23,8.70016119]
[1753374087334,8.70016119,188.24,188.16,40.0]
[1753374087562,8.70016119,188.22,188.16,8.70016119]
[1753374087863,8.70016119,188.18,188.13,0.06]
[1753374088066,8.70016119,188.17,188.13,0.06]
[1753374088366,8.70016119,188.15,188.13,0.06]
[1753374088666,0.7,188.15,188.13,0.06]
[1753374089644,5.31462585,188.16,188.13,0.06]
[1753374090050,14.01422219,188.18,188.13,0.06]
[1753374090253,31.31383874,188.19,188.14,8.70016119]
[1753374090762,26.0,188.19,188.16,8.70016119]
[1753374091661,8.70016119,188.2,188.13,0.06]
[1753374091868,8.70016119,188.15,188.13,0.06]
[1753374092053,8.70016119,188.14,188.13,0.06]
[1753374092251,5.31490831,188.15,188.13,0.06]
[1753374092445,14.0150695,188.15,188.13,0.06]
[1753374092853,9.40016119,188.14,188.13,0.06]
[1753374093057,0.7,188.14,188.13,0.06]
[1753374093261,8.70016119,188.14,188.13,0.06]
[1753374093465,33.12465046,188.2,188.13,0.06]
[1753374093466,8.70016119,188.17,188.13,0.06]
[1753374093646,49.6678162,188.25,188.16,8.70016119]
[1753374093846,5.31236719,188.24,188.17,0.67]
[1753374094051,8.08318866,188.24,188.19,8.70016119]
[1753374094263,0.03,188.27,188.22,8.70016119]
[1753374094465,5.31183187,188.26,188.21,8.70016119]
[1753374094665,0.7,188.25,188.21,8.70016119]
[1753374094963,8.08236379,188.26,188.21,8.70016119]
[1753374095170,0.03,188.27,188.23,13.29183497]
[1753374095356,0.03,188.27,188.25,13.29183497]
[1753374095557,0.03,188.27,188.24,0.67]
[1753374095558,0.03,188.27,188.26,13.29183497]
[1753374096855,0.03,188.27,188.25,13.29183497]
[1753374097475,0.03,188.27,188.22,13.29183497]
[1753374097675,13.32183497,188.27,188.21,39.29183497]
[1753374097984,14.02183497,188.27,188.21,13.29183497]
[1753374098349,13.29183497,188.25,188.17,65.97]
[1753374098574,13.29183497,188.25,188.19,13.29183497]
[1753374098758,18.60363779,188.26,188.17,65.97]
[1753374098950,13.29183497,188.25,188.19,13.29183497]
[1753374099147,13.29183497,188.22,188.15,13.29183497]
[1753374099477,0.7,188.25,188.17,13.29183497]
[1753374099478,13.29183497,188.23,188.17,13.29183497]
[1753374100154,39.29183497,188.25,188.2,13.29183497]
[1753374100354,31.31235929,188.25,188.21,0.67]
[1753374100563,44.60419426,188.25,188.2,13.29183497]
[1753374100763,13.29183497,188.22,188.16,39.29183497]
[1753374101349,13.29183497,188.21,188.14,39.97]
[1753374101549,13.29183497,188.19,188.14,39.3]
[1753374101748,50.87787177,188.25,188.13,0.06]
[1753374101749,13.29183497,188.17,188.13,0.06]
[1753374101946,13.29183497,188.16,188.13,0.06]
[1753374102373,18.60674328,188.15,188.13,0.06]
[1753374103169,13.29183497,188.14,188.13,0.06]
[1753374103675,13.99183497,188.14,188.13,0.06]
[1753374104272,19.30702578,188.14,188.13,0.06]
[1753374105568,26.0,188.12,188.11,0.06]
[1753374105769,26.0,188.12,188.11,1e-08]
[1753374105770,39.29183497,188.12,188.11,1e-08]
[1753374106167,45.30759087,188.12,188.11,1e-08]
[1753374106774,83.90759087,188.12,188.11,1e-08]
[1753374107876,70.6157559,188.12,188.11,1e-08]
[1753374108074,84.60759087,188.12,188.11,1e-08]
[1753374109081,44.60759087,188.12,188.11,1e-08]
[1753374109565,45.30759087,188.12,188.11,1e-08]
[1753374109963,26.0,188.15,188.11,1e-08]
[1753374110273,26.0,188.15,188.11,0.67000001]
[1753374110274,39.3,188.15,188.11,0.67000001]
[1753374110477,5.31519081,188.14,188.11,1e-08]
[1753374110678,18.60702578,188.14,188.11,1e-08]
[1753374110858,13.29183497,188.12,188.11,1e-08]
[1753374112355,18.60749699,188.13,188.11,1e-08]
[1753374113486,5.31566202,188.13,188.11,1e-08]
[1753374113856,13.29183497,188.12,188.11,1e-08]
[1753374114371,18.60749699,188.13,188.11,1e-08]
[1753374115690,57.90680089,188.15,188.11,1e-08]
[1753374115995,13.29183497,188.14,188.11,1e-08]
[1753374116485,18.60704657,188.14,188.11,1e-08]
[1753374117189,8.70852196,188.14,188.11,1e-08]
[1753374117360,53.32349571,188.15,188.11,1e-08]
[1753374117565,53.32349571,188.15,188.11,0.67000001]
[1753374117979,48.00852196,188.15,188.11,0.67000001]
[1753374118180,8.70852196,188.14,188.11,1e-08]
[1753374118767,14.02396873,188.14,188.11,1e-08]
[1753374120281,9.40852196,188.13,188.11,1e-08]
[1753374120587,8.70852196,188.13,188.11,1e-08]
[1753374120888,8.70852196,188.21,188.12,9.37852196]
[1753374121068,5.31293167,188.22,188.16,8.70852196]
[1753374121069,39.3,188.2,188.16,8.70852196]
[1753374121383,39.3,188.2,188.15,8.70852196]
[1753374121592,39.3,188.2,188.15,9.37852196]
[1753374121889,39.3,188.2,188.16,0.67]
[1753374122264,8.70852196,188.17,188.12,0.67]
[1753374122474,8.70852196,188.17,188.11,1e-08]
[1753374122475,8.70852196,188.14,188.11,1e-08]
[1753374122784,14.02427786,188.12,188.11,1e-08]
[1753374123162,14.72427786,188.12,188.11,1e-08]
[1753374123364,39.3,188.13,188.11,1e-08]
[1753374123686,8.70852196,188.14,188.11,1e-08]
[1753374123986,8.70852196,188.12,188.11,1e-08]
[1753374124189,74.70852196,188.12,188.11,1e-08]
[1753374124884,79.32427786,188.12,188.11,1e-08]
[1753374125090,26.0,188.12,188.11,1e-08]
[1753374125284,53.3040575,188.13,188.11,1e-08]
[1753374125587,9.40852196,188.12,188.11,1e-08]
[1753374125963,26.47752907,188.12,188.11,1e-08]
[1753374126763,8.70852196,188.12,188.11,1e-08]
[1753374127065,39.28,188.12,188.11,1e-08]
[1753374127883,8.70852196,188.13,188.11,1e-08]
[1753374128081,39.28,188.12,188.11,1e-08]
[1753374128967,47.98852196,188.12,188.11,1e-08]
[1753374129196,53.30427786,188.12,188.11,1e-08]
[1753374130095,88.71279982,188.12,188.09,1e-08]
[1753374130298,22.1015704,188.08,188.07,0.06]
[1753374130588,70.3744155,188.08,188.07,0.06]
[1753374130767,71.0544155,188.08,188.07,0.06]
[1753374130967,14.02540839,188.08,188.07,0.06]
[1753374131197,53.98540839,188.08,188.07,0.06]
[1753374131583,71.0544155,188.08,188.07,0.06]
[1753374131897,43.06900711,188.06,188.05,0.06]
[1753374132199,91.05752907,188.06,188.05,0.06]
[1753374132368,97.05498094,188.06,188.05,0.06]
[1753374133176,79.30597383,188.06,188.05,0.06]
[1753374133482,97.05498094,188.06,188.05,0.06]
[1753374134201,97.05498094,188.06,188.05,1e-08]
[1753374134783,96.37498094,188.06,188.05,1e-08]
[1753374134988,40.02597383,188.06,188.05,1e-08]
[1753374135189,39.28,188.06,188.05,1e-08]
[1753374135395,8.70852196,188.06,188.05,1e-08]
[1753374135605,47.98852196,188.06,188.05,1e-08]
[1753374135804,48.66852196,188.06,188.05,1e-08]
[1753374136506,53.98597383,188.06,188.05,1e-08]
[1753374136710,53.30597383,188.06,188.05,1e-08]
[1753374137123,8.70852196,188.06,188.05,1e-08]
[1753374137290,65.28,188.06,188.05,1e-08]
[1753374137492,79.30597383,188.06,188.05,1e-08]
[1753374137711,70.59745187,188.06,188.05,1e-08]
[1753374138216,79.30597383,188.06,188.05,1e-08]
[1753374138722,39.28,188.06,188.05,0.67000001]
[1753374139022,39.28,188.08,188.05,0.67000001]
[1753374139396,39.28,188.08,188.06,0.67]
[1753374140120,53.30563874,188.08,188.06,0.67]
[1753374140618,53.30563874,188.08,188.05,1e-08]
[1753374141390,53.30563874,188.08,188.05,0.67000001]
[1753374141621,8.70852196,188.06,188.05,1e-08]
[1753374141801,47.98852196,188.06,188.05,1e-08]
[1753374142123,53.30597383,188.06,188.05,1e-08]
[1753374143498,71.05498094,188.06,188.05,1e-08]
[1753374143803,73.82737648,188.06,188.05,1e-08]
[1753374144611,16.79836937,188.06,188.05,1e-08]
[1753374144809,73.82737648,188.06,188.05,1e-08]
[1753374145206,73.82737648,188.06,188.03,0.06]
[1753374145207,51.77752907,188.04,188.03,1e-08]
[1753374145512,26.0,188.01,188.0,0.06]
[1753374145695,73.98852196,188.01,188.0,0.06]
[1753374146493,97.05639508,188.01,188.0,0.06]
[1753374147820,42.78468397,187.98,187.97,0.2]
[1753374148020,91.05752907,187.98,187.97,0.2]
[1753374148320,91.73752907,187.98,187.97,1e-08]
[1753374148522,40.02823682,187.98,187.97,1e-08]
[1753374148711,79.30823682,187.98,187.97,1e-08]
[1753374148913,97.05724393,187.98,187.97,1e-08]
[1753374150022,43.06900711,187.94,187.93,0.06]
[1753374150226,91.05752907,187.94,187.93,0.06]
[1753374150421,97.05837614,187.94,187.93,0.06]
[1753374151705,79.30936903,187.94,187.93,0.06]
[1753374152097,73.98852196,187.94,187.93,0.06]
[1753374152298,79.30936903,187.94,187.93,0.06]
[1753374153602,26.0,187.98,187.93,0.75]
[1753374153928,47.98852196,187.97,187.94,0.69]
[1753374154233,8.70852196,188.03,187.97,1.5741]
[1753374154412,14.0262566,188.05,188.0,8.70852196]
[1753374154612,8.70852196,188.04,188.01,0.69]
[1753374154815,8.70852196,188.03,187.98,0.69]
[1753374155011,8.70852196,188.01,187.98,0.69]
[1753374155223,8.70852196,187.99,187.95,0.69]
[1753374155398,8.70852196,187.98,187.93,0.06]
[1753374155604,47.98852196,187.98,187.93,0.75]
[1753374155823,47.98852196,187.98,187.94,0.69]
[1753374156137,53.30825624,187.98,187.94,0.69]
[1753374156306,8.70852196,187.97,187.94,0.69]
[1753374156502,8.70852196,187.95,187.93,0.06]
[1753374156807,47.98852196,187.96,187.93,0.75]
[1753374157316,8.70852196,187.95,187.93,0.75]
[1753374157832,14.02909037,187.95,187.93,0.75]
[1753374158124,8.70852196,187.94,187.93,0.06]
[1753374158426,48.66852196,187.94,187.93,0.06]
[1753374159606,47.98852196,187.94,187.93,0.06]
[1753374161927,53.30936903,187.94,187.93,0.06]
[1753374163211,14.02936903,187.94,187.93,0.06]
[1753374163528,53.30936903,187.94,187.93,0.06]
[1753374163736,6.7619,188.03,187.93,0.75]
[1753374163908,8.70852196,188.0,187.94,25.49320593]
[1753374164111,5.31890006,188.01,187.96,8.70852196]
[1753374164330,53.30742202,188.01,187.97,0.69]
[1753374164509,8.70852196,187.98,187.94,0.69]
[1753374164710,8.70852196,187.98,187.93,0.06]
[1753374164711,8.70852196,187.96,187.93,0.06]
[1753374164926,47.98852196,187.96,187.93,0.06]
[1753374165216,8.70852196,187.95,187.93,0.06]
[1753374165411,8.70852196,187.95,187.93,0.75]
[1753374166013,14.02936903,187.94,187.93,0.06]
[1753374166416,53.28936903,187.94,187.93,0.06]
[1753374169825,54.1115306,187.94,187.93,0.06]
[1753374170136,26.0,187.91,187.89,0.2]
[1753374170313,223.2528451,187.9,187.89,0.2]
[1753374170518,223.9328451,187.9,187.89,0.2]
[1753374171442,26.0,187.86,187.8,6.3134]
[1753374171620,39.26,187.85,187.8,16.78468397]
[1753374171942,5.32424661,187.82,187.79,16.78468397]
[1753374172110,8.70852196,187.81,187.78,16.78468397]
[1753374172310,8.70852196,187.79,187.78,16.78468397]
[1753374172517,8.70852196,187.79,187.75,0.69]
[1753374172738,8.70852196,187.78,187.75,0.69]
[1753374173036,39.26,187.78,187.76,0.69]
[1753374173243,26.0,187.82,187.78,16.78468397]
[1753374173413,39.26,187.83,187.79,0.69]
[1753374173618,8.70852196,187.8,187.75,0.69]
[1753374173838,8.70852196,187.76,187.74,0.2]
[1753374174015,14.03475365,187.75,187.74,0.2]
[1753374174425,40.71475365,187.75,187.74,0.2]
[1753374174629,14.99907679,187.75,187.74,1e-08]
[1753374176319,26.0,187.72,187.66,0.06]
[1753374176538,47.96852196,187.71,187.66,0.06]
[1753374176842,48.9328451,187.71,187.66,0.06]
[1753374177523,48.2528451,187.71,187.66,0.06]
[1753374177842,39.26,187.71,187.66,0.06]
[1753374178024,53.29588864,187.71,187.68,16.78468397]
[1753374178337,53.29588864,187.71,187.66,0.06]
[1753374178532,26.0,187.68,187.66,0.06]
[1753374178744,39.28,187.67,187.66,0.06]
[1753374178927,48.65852196,187.67,187.66,0.06]
[1753374179527,47.98852196,187.67,187.66,0.06]
[1753374180247,8.70233129,187.78,187.66,0.74]
[1753374180428,5.32651539,187.74,187.69,8.70852196]
[1753374180630,8.70852196,187.71,187.67,16.78468397]
[1753374180829,8.70852196,187.68,187.66,0.06]
[1753374181144,47.98852196,187.68,187.66,0.06]
[1753374181332,8.70852196,187.67,187.66,16.84468397]
[1753374182048,39.28,187.68,187.67,16.78468397]
[1753374182223,53.3167402,187.68,187.67,16.78468397]
[1753374182553,8.70852196,187.76,187.68,23.44898397]
[1753374182731,8.70852196,187.76,187.69,0.68]
[1753374182732,39.28,187.75,187.69,0.68]
[1753374183042,39.28,187.75,187.7,16.78468397]
[1753374183346,8.70852196,187.71,187.66,0.06]
[1753374183533,8.70852196,187.67,187.66,0.06]
[1753374183736,47.98852196,187.67,187.66,0.06]
[1753374184348,53.31702411,187.67,187.66,0.06]
[1753374184547,39.28,187.67,187.66,0.06]
[1753374184844,39.28,187.68,187.66,0.74]
[1753374185021,39.28,187.68,187.67,16.78468397]
[1753374185022,47.98852196,187.68,187.67,16.78468397]
[1753374185747,47.98852196,187.68,187.66,0.06]
[1753374185935,8.70852196,187.67,187.66,0.06]
[1753374186530,14.03702411,187.67,187.66,0.06]
[1753374187256,26.0,187.64,187.61,0.06]
[1753374187443,8.70852196,187.62,187.61,0.06]
[1753374187645,12.60320792,187.62,187.61,0.06]
[1753374188348,51.88320792,187.62,187.61,0.06]
[1753374188532,57.2131301,187.62,187.61,0.06]
[1753374188729,26.0,187.6,187.55,0.1]
[1753374188935,26.0,187.57,187.55,0.1]
[1753374189142,86.58521322,187.56,187.55,0.1]
[1753374189534,82.19425611,187.56,187.55,0.1]
[1753374189848,149.28432314,187.55,187.44,0.68]
[1753374190151,34.70852196,187.45,187.37,0.68]
[1753374190354,8.70852196,187.38,187.32,16.023501]
[1753374190654,8.70852196,187.38,187.23,11.34013656]
[1753374190655,26.0,187.3,187.23,11.34013656]
[1753374190828,39.56,187.29,187.22,17.23862196]
[1753374191027,39.56,187.29,187.22,21.89992524]
[1753374191238,39.56,187.29,187.26,13.43034125]
[1753374191436,39.56,187.29,187.27,0.68]
[1753374191652,39.56,187.29,187.28,16.78468397]
[1753374191836,26.0,187.3,187.29,16.78468397]
[1753374192150,65.56,187.3,187.24,0.68]
[1753374192527,65.56,187.3,187.21,0.68]
[1753374192528,5.33931336,187.29,187.21,0.68]
[1753374192747,39.56,187.28,187.21,0.68]
[1753374192954,13.43034125,187.27,187.21,0.68]
[1753374193136,39.58,187.26,187.21,14.11034125]
[1753374193339,39.58,187.26,187.22,0.68]
[1753374193658,39.58,187.26,187.23,0.68]
[1753374193849,39.58,187.26,187.24,16.78468397]
[1753374194035,26.0,187.29,187.25,0.68]
[1753374194353,39.6,187.28,187.26,0.68]
[1753374194528,39.62,187.27,187.26,13.43034125]
[1753374194729,26.0,187.32,187.26,13.43034125]
[1753374194941,39.66,187.31,187.3,30.21502522]
[1753374195145,39.66,187.31,187.3,17.46468397]
[1753374195551,26.0,187.32,187.31,16.78468397]
[1753374195730,0.28432314,187.37,187.31,30.89502522]
[1753374195927,0.28432314,187.37,187.36,30.21502522]
[1753374196353,0.28432314,187.37,187.36,30.89502522]
[1753374196765,0.28432314,187.39,187.37,16.78468397]
[1753374196966,39.68,187.42,187.39,16.78468397]
[1753374197148,39.68,187.44,187.42,16.78468397]
[1753374197348,39.68,187.44,187.43,0.68]
[1753374197548,26.0,187.45,187.44,16.78468397]
[1753374197732,65.68,187.45,187.44,16.78468397]
[1753374197938,39.43034125,187.45,187.37,16.78468397]
[1753374198164,13.43034125,187.47,187.43,16.78468397]
[1753374198345,39.68,187.46,187.43,16.78468397]
[1753374198543,39.68,187.46,187.43,14.11034125]
[1753374198738,39.68,187.46,187.43,0.68]
[1753374198952,0.28432314,187.42,187.4,16.78468397]
[1753374199152,39.98432314,187.42,187.4,16.78468397]
[1753374199441,39.98432314,187.42,187.41,30.89502522]
[1753374199841,39.98432314,187.42,187.41,16.78468397]
[1753374200043,39.98432314,187.42,187.41,17.46468397]
[1753374200363,0.28432314,187.42,187.41,30.89502522]
[1753374200660,0.28432314,187.42,187.41,17.46468397]
[1753374201163,0.28432314,187.43,187.42,16.78468397]
[1753374201368,0.28432314,187.43,187.42,30.89502522]
[1753374201548,0.28432314,187.43,187.42,30.95502522]
[1753374202361,39.74,187.46,187.42,14.17034125]
[1753374202562,5.91562736,187.84,187.46,16.78468397]
[1753374202563,13.43034125,187.52,187.46,16.78468397]
[1753374202745,13.43034125,187.52,187.42,0.06]
[1753374202746,39.74,187.51,187.48,16.78468397]
[1753374203062,39.74,187.51,187.5,16.78468397]
[1753374203945,54.96889184,187.57,187.5,16.78468397]
[1753374203946,13.43034125,187.56,187.5,14.11034125]
[1753374204156,43.56873617,187.55,187.52,16.78468397]
[1753374204467,43.56873617,187.55,187.53,0.28432314]
[1753374204468,53.17034125,187.55,187.53,0.28432314]
[1753374204875,44.76253704,187.54,187.53,0.28432314]
[1753374205178,45.07194432,187.55,187.51,13.71466439]
[1753374205344,45.07194432,187.55,187.51,0.28432314]
[1753374205543,39.74,187.55,187.52,16.78468397]
[1753374205756,13.43034125,187.59,187.54,30.21502522]
[1753374206065,13.43034125,187.59,187.5,5.33328918]
[1753374206066,39.74,187.59,187.58,0.28432314]
[1753374206466,39.74,187.59,187.58,17.74900711]
[1753374206647,39.72,187.62,187.6,0.28432314]
[1753374206844,5.33020627,187.61,187.6,17.06900711]
[1753374207166,39.72,187.62,187.61,17.06900711]
[1753374207344,39.72,187.62,187.61,0.28432314]
[1753374207758,17.58621819,187.67,187.61,0.28432314]
[1753374207759,41.64,187.72,187.62,0.28432314]